fUSD/lending_fUSD_20240409
["ID","MTS","AMOUNT","RATE_DAILY","PERIOD"]
[322009445,1712685053570,-500.0,0.00019726,2]
[322009446,1712685053580,-500.0,0.00019726,2]
[322009447,1712685053589,-500.0,0.00019726,2]
[322009448,1712685053598,-500.0,0.00019726,2]
[322009449,1712685053607,-500.0,0.00019726,2]
[322009450,1712685053616,-500.0,0.00019726,2]
[322009451,1712685053625,-500.0,0.00019726,2]
[322009452,1712685053634,-500.0,0.00019726,2]
[322009453,1712685053643,-500.0,0.00019726,2]
[322009454,1712685053652,-751.75,0.00019726,2]
[322009455,1712685053661,-500.0,0.00019726,2]
[322009456,1712685053672,-500.0,0.00019726,2]
[322009457,1712685053681,-500.0,0.00019726,2]
[322009458,1712685053691,-500.0,0.00019726,2]
[322009459,1712685053701,-500.0,0.00019726,2]
[322009460,1712685053710,-398.15613463,0.00019726,2]
[322009461,1712685053720,-500.0,0.00019726,2]
[322009462,1712685053729,-500.0,0.00019726,2]
[322009463,1712685053739,-500.0,0.00019726,2]
[322009464,1712685053748,-824.19,0.00019726,2]
[322009465,1712685053757,-500.0,0.00019726,2]
[322009466,1712685053766,-578.6,0.00019726,2]
[322009467,1712685053775,-500.0,0.00019726,2]
[322009468,1712685053784,-539.12,0.00019726,2]
[322009469,1712685053793,-500.0,0.00019726,2]
[322009470,1712685053803,-1414.32,0.00019726,2]
[322009471,1712685053812,-10655.95,0.00019726,2]
[322009472,1712685053822,-723.8,0.00019726,2]
[322009473,1712685053831,-500.0,0.00019726,2]
[322009474,1712685053840,-500.0,0.00019726,2]
[322009475,1712685053849,-500.0,0.00019726,2]
[322009476,1712685053858,-150.77,0.00019726,2]
[322009477,1712685053869,-500.0,0.00019726,2]
[322009478,1712685053880,-500.0,0.00019726,2]
[322009479,1712685053889,-2205.62,0.00019726,2]
[322009480,1712685053899,-500.0,0.00019726,2]
[322009481,1712685053908,-500.0,0.00019726,2]
[322009482,1712685053918,-500.0,0.00019726,2]
[322009483,1712685053927,-281.53,0.00019726,2]
[322009484,1712685053936,-1150.95,0.00019726,2]
[322009485,1712685053945,-2678.53,0.00019726,2]
[322009486,1712685053956,-500.0,0.00019726,2]
[322009487,1712685053965,-517.67,0.00019726,2]
[322009488,1712685053976,-500.0,0.00019726,2]
[322009489,1712685053987,-784.79,0.00019726,2]
[322009490,1712685053997,-500.0,0.00019726,2]
[322009491,1712685054057,-1011.06,0.00019726,2]
[322009492,1712685054067,-500.0,0.00019726,2]
[322009493,1712685054077,-500.0,0.00019726,2]
[322009494,1712685054086,-1027.94,0.00019726,2]
[322009495,1712685054096,-2381.21,0.00019726,2]
[322009496,1712685054106,-602.09,0.00019726,2]
[322009497,1712685054116,-154.99,0.00019726,2]
[322009498,1712685054127,-500.0,0.00019726,2]
[322009499,1712685054138,-500.0,0.00019726,2]
[322009500,1712685054148,-500.0,0.00019726,2]
[322009501,1712685054159,-500.0,0.00019726,2]
[322009502,1712685054170,-500.0,0.00019726,2]
[322009503,1712685054179,-627.1,0.00019726,2]
[322009504,1712685054189,-1356.51,0.00019726,2]
[322009505,1712685054199,-500.0,0.00019726,2]
[322009506,1712685054209,-415.40761745,0.00019726,2]
[322009507,1712685054219,-537.58,0.00019726,2]
[322009508,1712685054230,-500.0,0.00019726,2]
[322009509,1712685054239,-500.0,0.00019726,2]
[322009510,1712685054250,-2357.41,0.00019726,2]
[322009511,1712685054260,-1094.02,0.00019726,2]
[322009512,1712685054269,-500.0,0.00019726,2]
[322009513,1712685054278,-500.0,0.00019726,2]
[322009514,1712685054288,-1329.41,0.00019726,2]
[322009515,1712685054299,-500.0,0.00019726,2]
[322009516,1712685054310,-500.0,0.00019726,2]
[322009517,1712685054319,-699.13,0.00019726,2]
[322009518,1712685054329,-1056.81,0.00019726,2]
[322009519,1712685054340,-508.82,0.00019726,2]
[322009520,1712685054351,-884.65,0.00019726,2]
[322009521,1712685054361,-759.08,0.00019726,2]
[322009522,1712685054371,-628.0,0.00019726,2]
[322009523,1712685054381,-500.0,0.00019726,2]
[322009524,1712685054390,-588.43,0.00019726,2]
[322009525,1712685054400,-1585.64,0.00019726,2]
[322009526,1712685054410,-500.0,0.00019726,2]
[322009527,1712685054421,-1364.52,0.00019726,2]
[322009528,1712685054431,-7521.25,0.00019726,2]
[322009529,1712685054441,-500.0,0.00019726,2]
[322009530,1712685054451,-16039.16,0.00019726,2]
[322009531,1712685054461,-500.0,0.00019726,2]
[322009532,1712685054472,-500.0,0.00019726,2]
[322009533,1712685054481,-1963.21,0.00019726,2]
[322009534,1712685054492,-500.0,0.00019726,2]
[322009535,1712685054502,-1303.8,0.00019726,2]
[322009536,1712685054512,-590.74,0.00019726,2]
[322009537,1712685054522,-1248.85,0.00019726,2]
[322009538,1712685054532,-621.16,0.00019726,2]
[322009539,1712685054541,-173.82,0.00019726,2]
[322009540,1712685054551,-817.62,0.00019726,2]
[322009541,1712685054560,-1667.67,0.00019726,2]
[322009542,1712685054570,-529.42,0.00019726,2]
[322009543,1712685054579,-1194.08,0.00019726,2]
[322009544,1712685054589,-1005.64,0.00019726,2]
[322009545,1712685054598,-964.76,0.00019726,2]
[322009546,1712685054608,-516.29,0.00019726,2]
[322009547,1712685054617,-293.18044764,0.00019726,2]
[322009548,1712685054627,-945.1,0.00019726,2]
[322009549,1712685054636,-4307.68,0.00019726,2]
[322009550,1712685054645,-919.69,0.00019726,2]
[322009551,1712685054655,-2377.1,0.00019726,2]
[322009552,1712685054664,-1411.68,0.00019726,2]
[322009553,1712685054680,-1844.01,0.00019726,2]
[322009554,1712685054691,-500.0,0.00019726,2]
[322009555,1712685054701,-2659.83,0.00019726,2]
[322009556,1712685054711,-790.69,0.00019726,2]
[322009557,1712685054722,-634.15,0.00019726,2]
[322009558,1712685054731,-567.57,0.00019726,2]
[322009559,1712685054740,-652.12,0.00019726,2]
[322009560,1712685054749,-860.06,0.00019726,2]
[322009561,1712685054758,-500.0,0.00019726,2]
[322009562,1712685054768,-1033.51,0.00019726,2]
[322009563,1712685054777,-156.41,0.00019726,2]
[322009564,1712685054786,-500.0,0.00019726,2]
[322009565,1712685054796,-1639.1,0.00019726,2]
[322009566,1712685054805,-500.0,0.00019726,2]
[322009567,1712685054815,-542.36,0.00019726,2]
[322009568,1712685054824,-500.0,0.00019726,2]
[322009569,1712685054834,-397.41,0.00019726,2]
[322009570,1712685054843,-600.94,0.00019726,2]
[322009571,1712685054852,-1653.76,0.00019726,2]
[322009572,1712685054862,-500.0,0.00019726,2]
[322009573,1712685054872,-859.76,0.00019726,2]
[322009574,1712685054883,-1526.43,0.00019726,2]
[322009575,1712685054892,-2476.75,0.00019726,2]
[322009576,1712685054901,-768.52,0.00019726,2]
[322009577,1712685054911,-526.17,0.00019726,2]
[322009578,1712685054920,-562.79,0.00019726,2]
[322009579,1712685054931,-880.1,0.00019726,2]
[322009580,1712685054940,-4197.48,0.00019726,2]
[322009581,1712685054949,-500.0,0.00019726,2]
[322009582,1712685054960,-2260.95,0.00019726,2]
[322009583,1712685054969,-740.93,0.00019726,2]
[322009584,1712685054978,-1302.06,0.00019726,2]
[322009585,1712685054987,-500.0,0.00019726,2]
[322009586,1712685054997,-1747.82,0.00019726,2]
[322009587,1712685055006,-867.95,0.00019726,2]
[322009588,1712685055016,-500.0,0.00019726,2]
[322009589,1712685055025,-751.58,0.00019726,2]
[322009590,1712685055034,-891.79,0.00019726,2]
[322009591,1712685055043,-500.0,0.00019726,2]
[322009592,1712685055052,-500.0,0.00019726,2]
[322009593,1712685055062,-500.0,0.00019726,2]
[322009594,1712685055071,-500.0,0.00019726,2]
[322009595,1712685055081,-1178.22,0.00019726,2]
[322009596,1712685055092,-500.0,0.00019726,2]
[322009597,1712685055101,-5939.73,0.00019726,2]
[322009598,1712685055111,-926.84,0.00019726,2]
[322009599,1712685055120,-644.83,0.00019726,2]
[322009600,1712685055132,-500.0,0.00019726,2]
[322009601,1712685055141,-500.0,0.00019726,2]
[322009602,1712685055150,-396.65,0.00019726,2]
[322009603,1712685055160,-500.0,0.00019726,2]
[322009604,1712685055171,-4541.37,0.00019726,2]
[322009605,1712685055182,-2446.07,0.00019726,2]
[322009606,1712685055192,-338.57,0.00019726,2]
[322009607,1712685055200,-730.21,0.00019726,2]
[322009608,1712685055210,-3555.59,0.00019726,2]
[322009609,1712685055219,-1004.65,0.00019726,2]
[322009610,1712685055229,-668.41,0.00019726,2]
[322009611,1712685055241,-500.0,0.00019726,2]
[322009612,1712685055250,-169.05,0.00019726,2]
[322009613,1712685055260,-1371.67,0.00019726,2]
[322009614,1712685055269,-500.0,0.00019726,2]
[322009615,1712685055281,-500.0,0.00019726,2]
[322009616,1712685055290,-500.0,0.00019726,2]
[322009617,1712685055299,-500.0,0.00019726,2]
[322009618,1712685055308,-800.77,0.00019726,2]
[322009619,1712685055317,-500.0,0.00019726,2]
[322009620,1712685055326,-2156.03,0.00019726,2]
[322009621,1712685055335,-500.0,0.00019726,2]
[322009622,1712685055344,-1178.1,0.00019726,2]
[322009623,1712685055354,-643.3,0.00019726,2]
[322009624,1712685055366,-513.42,0.00019726,2]
[322009625,1712685055375,-1251.88,0.00019726,2]
[322009626,1712685055384,-222.62,0.00019726,2]
[322009627,1712685055394,-547.02,0.00019726,2]
[322009628,1712685055403,-9335.45,0.00019726,2]
[322009629,1712685055413,-804.55,0.00019726,2]
[322009630,1712685055427,-5598.87,0.00019726,2]
[322009631,1712685055436,-500.0,0.00019726,2]
[322009632,1712685055446,-1059.63,0.00019726,2]
[322009633,1712685055455,-672.74,0.00019726,2]
[322009634,1712685055464,-500.0,0.00019726,2]
[322009635,1712685055473,-500.0,0.00019726,2]
[322009636,1712685055482,-500.0,0.00019726,2]
[322009637,1712685055491,-500.0,0.00019726,2]
[322009638,1712685055500,-794.34,0.00019726,2]
[322009639,1712685055509,-1184.09,0.00019726,2]
[322009640,1712685055518,-255.02325472,0.00019726,2]
[322009641,1712685055527,-500.0,0.00019726,2]
[322009642,1712685055536,-731.57,0.00019726,2]
[322009643,1712685055545,-878.03,0.00019726,2]
[322009644,1712685055554,-837.95,0.00019726,2]
[322009645,1712685055563,-1088.76,0.00019726,2]
[322009646,1712685055572,-500.0,0.00019726,2]
[322009647,1712685055580,-1646.97,0.00019726,2]
[322009648,1712685055589,-500.0,0.00019726,2]
[322009649,1712685055598,-618.92,0.00019726,2]
[322009650,1712685055608,-703.24,0.00019726,2]
[322009651,1712685055617,-1497.53,0.00019726,2]
[322009652,1712685055626,-500.0,0.00019726,2]
[322009653,1712685055635,-764.82,0.00019726,2]
[322009654,1712685055644,-1481.94,0.00019726,2]
[322009655,1712685055653,-1030.94,0.00019726,2]
[322009656,1712685055662,-500.0,0.00019726,2]
[322009657,1712685055671,-500.0,0.00019726,2]
[322009658,1712685055681,-500.0,0.00019726,2]
[322009659,1712685055690,-1348.64,0.00019726,2]
[322009660,1712685055700,-500.0,0.00019726,2]
[322009661,1712685055708,-718.64,0.00019726,2]
[322009662,1712685055717,-500.0,0.00019726,2]
[322009663,1712685055726,-684.88,0.00019726,2]
[322009664,1712685055735,-500.0,0.00019726,2]
[322009665,1712685055744,-500.0,0.00019726,2]
[322009666,1712685055753,-500.0,0.00019726,2]
[322009667,1712685055762,-500.0,0.00019726,2]
[322009668,1712685055771,-1423.87,0.00019726,2]
[322009669,1712685055780,-500.0,0.00019726,2]
[322009670,1712685055789,-886.66,0.00019726,2]
[322009671,1712685055798,-500.0,0.00019726,2]
[322009672,1712685055807,-500.0,0.00019726,2]
[322009673,1712685055817,-500.0,0.00019726,2]
[322009674,1712685055826,-500.0,0.00019726,2]
[322009675,1712685055837,-500.0,0.00019726,2]
[322009676,1712685055849,-1369.54,0.00019726,2]
[322009677,1712685055862,-500.0,0.00019726,2]
[322009678,1712685055874,-1513.26,0.00019726,2]
[322009679,1712685055889,-500.0,0.00019726,2]
[322009680,1712685055899,-1135.58,0.00019726,2]
[322009681,1712685055909,-1078.79,0.00019726,2]
[322009682,1712685055923,-3637.63,0.00019726,2]
[322009683,1712685055935,-975.77,0.00019726,2]
[322009684,1712685055946,-500.0,0.00019726,2]
[322009685,1712685055960,-719.06,0.00019726,2]
[322009686,1712685055972,-613.65,0.00019726,2]
[322009687,1712685055984,-500.0,0.00019726,2]
[322009688,1712685055995,-500.0,0.00019726,2]
[322009689,1712685056006,-500.0,0.00019726,2]
[322009690,1712685056015,-500.0,0.00019726,2]
[322009691,1712685056026,-4161.63,0.00019726,2]
[322009692,1712685056038,-500.0,0.00019726,2]
[322009693,1712685056050,-508.36,0.00019726,2]
[322009694,1712685056062,-500.0,0.00019726,2]
[322009695,1712685056072,-1872.54,0.00019726,2]
[322009696,1712685056084,-2607.78,0.00019726,2]
[322009697,1712685056096,-500.0,0.00019726,2]
[322009698,1712685056108,-743.78,0.00019726,2]
[322009699,1712685056119,-500.0,0.00019726,2]
[322009700,1712685056129,-500.0,0.00019726,2]
[322009701,1712685056140,-500.0,0.00019726,2]
[322009702,1712685056152,-500.0,0.00019726,2]
[322009703,1712685056163,-5572.90028845,0.00019809,2]
[322009704,1712685056177,-311.56462363,0.00019826,2]
[322009705,1712685056189,-15095.7671179,0.00019865,2]
[322009706,1712685056200,-3760.94825741,0.00019865,2]
[322009707,1712685056211,-180.00657047,0.00019893,2]
[322009708,1712685056222,-156.90567106,0.000199,2]
[322009709,1712685056234,-156.90567095,0.000199,2]
[322009710,1712685056246,-156.90567095,0.000199,2]
[322009711,1712685056258,-156.90567095,0.000199,2]
[322009712,1712685056269,-156.90567095,0.000199,2]
[322009713,1712685056282,-563.76564406,0.000199,2]
[322009714,1712685056294,-1449.71488732,0.000199,2]
[322009715,1712685056306,-1605.76747325,0.00019903,2]
[322009716,1712685056318,-820.8,0.00019903,2]
[322009717,1712685056330,-167.72,0.00019958,2]
[322009718,1712685056341,-224.0,0.00019971,2]
[322009719,1712685056351,-5572.90028845,0.00019991,2]
[322009720,1712685056361,-624.32519161,0.0002,2]
[322009721,1712685056370,-435.0,0.0002,2]
[322009722,1712685056381,-2546.54847134,0.0002,2]
[322009723,1712685056392,-323.63977721,0.0002,2]
[322009724,1712685056404,-3728.0,0.0002,2]
[322009725,1712685056414,-185.78135859,0.0002,2]
[322009726,1712685056426,-640.36073916,0.0002,2]
[322009727,1712685056438,-155.0,0.0002,2]
[322009728,1712685056449,-20286.68165658,0.0002,2]
[322009729,1712685056459,-155.0,0.0002,2]
[322009730,1712685056469,-155.8295946,0.0002,2]
[322009731,1712685056480,-155.0,0.0002,2]
[322009732,1712685056491,-19454.75608231,0.0002,2]
[322009733,1712685056501,-20163.40939977,0.0002,2]
[322009734,1712685056512,-3647.85020423,0.0002,2]
[322009735,1712685056523,-251.62,0.0002,2]
[322009736,1712685056534,-500.0,0.0002,2]
[322009737,1712685056544,-500.0,0.0002,2]
[322009738,1712685056555,-500.0,0.0002,2]
[322009739,1712685056566,-500.0,0.0002,2]
[322009740,1712685056577,-500.0,0.0002,2]
[322009741,1712685056588,-509.76,0.0002,2]
[322009742,1712685056599,-500.0,0.0002,2]
[322009743,1712685056610,-500.0,0.0002,2]
[322009744,1712685056621,-500.0,0.0002,2]
[322009745,1712685056632,-500.0,0.0002,2]
[322009746,1712685056644,-500.0,0.0002,2]
[322009747,1712685056655,-679.14,0.0002,2]
[322009748,1712685056666,-500.0,0.0002,2]
[322009749,1712685056678,-500.0,0.0002,2]
[322009750,1712685056690,-500.0,0.0002,2]
[322009751,1712685056702,-500.0,0.0002,2]
[322009752,1712685056712,-500.0,0.0002,2]
[322009753,1712685056723,-508.26,0.0002,2]
[322009754,1712685056734,-500.0,0.0002,2]
[322009755,1712685056745,-684.14,0.0002,2]
[322009756,1712685056756,-500.0,0.0002,2]
[322009757,1712685056767,-633.57,0.0002,2]
[322009758,1712685056778,-500.0,0.0002,2]
[322009759,1712685056789,-500.0,0.0002,2]
[322009760,1712685056799,-500.0,0.0002,2]
[322009761,1712685056810,-500.0,0.0002,2]
[322009762,1712685056820,-575.47,0.0002,2]
[322009763,1712685056831,-500.0,0.0002,2]
[322009764,1712685056842,-592.54,0.0002,2]
[322009765,1712685056853,-500.0,0.0002,2]
[322009766,1712685056863,-500.0,0.0002,2]
[322009767,1712685056875,-500.0,0.0002,2]
[322009768,1712685056889,-524.99,0.0002,2]
[322009769,1712685056900,-500.0,0.0002,2]
[322009770,1712685056910,-752.81,0.0002,2]
[322009771,1712685056922,-500.0,0.0002,2]
[322009772,1712685056933,-500.0,0.0002,2]
[322009773,1712685056943,-500.0,0.0002,2]
[322009774,1712685056954,-500.0,0.0002,2]
[322009775,1712685056965,-500.0,0.0002,2]
[322009776,1712685056977,-649.11,0.0002,2]
[322009777,1712685056987,-500.0,0.0002,2]
[322009778,1712685056997,-500.0,0.0002,2]
[322009779,1712685057008,-500.0,0.0002,2]
[322009780,1712685057018,-500.0,0.0002,2]
[322009781,1712685057029,-500.0,0.0002,2]
[322009782,1712685057039,-530.71,0.0002,2]
[322009783,1712685057050,-500.0,0.0002,2]
[322009784,1712685057061,-500.0,0.0002,2]
[322009785,1712685057072,-551.47,0.0002,2]
[322009786,1712685057082,-500.0,0.0002,2]
[322009787,1712685057093,-584.11,0.0002,2]
[322009788,1712685057104,-703.73,0.0002,2]
[322009789,1712685057114,-500.0,0.0002,2]
[322009790,1712685057127,-500.0,0.0002,2]
[322009791,1712685057139,-500.0,0.0002,2]
[322009792,1712685057152,-500.0,0.0002,2]
[322009793,1712685057163,-500.0,0.0002,2]
[322009794,1712685057176,-500.0,0.0002,2]
[322009795,1712685057187,-500.0,0.0002,2]
[322009796,1712685057198,-500.0,0.0002,2]
[322009797,1712685057209,-500.0,0.0002,2]
[322009798,1712685057220,-500.0,0.0002,2]
[322009799,1712685057231,-500.0,0.0002,2]
[322009800,1712685057242,-500.0,0.0002,2]
[322009801,1712685057253,-608.99,0.0002,2]
[322009802,1712685057264,-191.04637782,0.0002,2]
[322009803,1712685057274,-973.81,0.0002,2]
[322009804,1712685057285,-547.82680119,0.0002,2]
[322009805,1712685057296,-500.0,0.0002,2]
[322009806,1712685057307,-343.6,0.0002,2]
[322009807,1712685057322,-526.67,0.0002,2]
[322009808,1712685057333,-500.0,0.0002,2]
[322009809,1712685057344,-500.0,0.0002,2]
[322009810,1712685057355,-500.0,0.0002,2]
[322009811,1712685057366,-512.26,0.0002,2]
[322009812,1712685057377,-576.45,0.0002,2]
[322009813,1712685057387,-500.0,0.0002,2]
[322009814,1712685057399,-500.0,0.0002,2]
[322009815,1712685057410,-500.0,0.0002,2]
[322009816,1712685057421,-500.0,0.0002,2]
[322009817,1712685057432,-500.0,0.0002,2]
[322009818,1712685057443,-637.05,0.0002,2]
[322009819,1712685057454,-500.0,0.0002,2]
[322009820,1712685057465,-500.0,0.0002,2]
[322009821,1712685057476,-500.0,0.0002,2]
[322009822,1712685057487,-500.0,0.0002,2]
[322009823,1712685057500,-500.0,0.0002,2]
[322009824,1712685057511,-507.5,0.0002,2]
[322009825,1712685057523,-500.0,0.0002,2]
[322009826,1712685057533,-500.0,0.0002,2]
[322009827,1712685057544,-874.84,0.0002,2]
[322009828,1712685057556,-500.0,0.0002,2]
[322009829,1712685057567,-500.0,0.0002,2]
[322009830,1712685057577,-674.35,0.0002,2]
[322009831,1712685057588,-500.0,0.0002,2]
[322009832,1712685057600,-500.0,0.0002,2]
[322009833,1712685057616,-500.0,0.0002,2]
[322009834,1712685057627,-299.40455995,0.0002,2]
[322009835,1712685057638,-500.0,0.0002,2]
[322009836,1712685057650,-543.33,0.0002,2]
[322009837,1712685057663,-500.0,0.0002,2]
[322009838,1712685057676,-500.0,0.0002,2]
[322009839,1712685057687,-500.0,0.0002,2]
[322009840,1712685057699,-500.0,0.0002,2]
[322009841,1712685057711,-514.4,0.0002,2]
[322009842,1712685057722,-500.0,0.0002,2]
[322009843,1712685057734,-617.79,0.0002,2]
[322009844,1712685057746,-500.0,0.0002,2]
[322009845,1712685057757,-500.0,0.0002,2]
[322009846,1712685057768,-500.0,0.0002,2]
[322009847,1712685057779,-500.0,0.0002,2]
[322009848,1712685057790,-604.92027625,0.0002,2]
[322009849,1712685057802,-500.0,0.0002,2]
[322009850,1712685057813,-500.0,0.0002,2]
[322009851,1712685057824,-500.0,0.0002,2]
[322009852,1712685057836,-588.33,0.0002,2]
[322009853,1712685057848,-150.0,0.0002,2]
[322009854,1712685057860,-500.0,0.0002,2]
[322009855,1712685057875,-500.0,0.0002,2]
[322009856,1712685057895,-500.0,0.0002,2]
[322009857,1712685057906,-500.0,0.0002,2]
[322009858,1712685057917,-500.0,0.0002,2]
[322009859,1712685057929,-500.0,0.0002,2]
[322009860,1712685057939,-500.0,0.0002,2]
[322009861,1712685057949,-660.26,0.0002,2]
[322009862,1712685057960,-500.0,0.0002,2]
[322009863,1712685057970,-500.0,0.0002,2]
[322009864,1712685057980,-500.0,0.0002,2]
[322009865,1712685057991,-500.0,0.0002,2]
[322009866,1712685058002,-500.0,0.0002,2]
[322009867,1712685058012,-500.0,0.0002,2]
[322009868,1712685058022,-500.0,0.0002,2]
[322009869,1712685058032,-500.0,0.0002,2]
[322009870,1712685058043,-500.0,0.0002,2]
[322009871,1712685058053,-751.75,0.0002,2]
[322009872,1712685058064,-438.65604181,0.0002,2]
[322009873,1712685058075,-500.0,0.0002,2]
[322009874,1712685058086,-500.0,0.0002,2]
[322009875,1712685058097,-500.0,0.0002,2]
[322009876,1712685058107,-500.0,0.0002,2]
[322009877,1712685058118,-500.0,0.0002,2]
[322009878,1712685058128,-500.0,0.0002,2]
[322009879,1712685058139,-824.19,0.0002,2]
[322009880,1712685058150,-500.0,0.0002,2]
[322009881,1712685058160,-578.6,0.0002,2]
[322009882,1712685058172,-500.0,0.0002,2]
[322009883,1712685058183,-539.12,0.0002,2]
[322009884,1712685058194,-500.0,0.0002,2]
[322009885,1712685058204,-1414.32,0.0002,2]
[322009886,1712685058215,-10655.95,0.0002,2]
[322009887,1712685058226,-723.8,0.0002,2]
[322009888,1712685058237,-500.0,0.0002,2]
[322009889,1712685058247,-500.0,0.0002,2]
[322009890,1712685058258,-500.0,0.0002,2]
[322009891,1712685058269,-500.0,0.0002,2]
[322009892,1712685058279,-643.23,0.0002,2]
[322009893,1712685058290,-2205.62,0.0002,2]
[322009894,1712685058301,-500.0,0.0002,2]
[322009895,1712685058311,-500.0,0.0002,2]
[322009896,1712685058321,-500.0,0.0002,2]
[322009897,1712685058333,-1150.95,0.0002,2]
[322009898,1712685058344,-2678.53,0.0002,2]
[322009899,1712685058355,-500.0,0.0002,2]
[322009900,1712685058365,-517.67,0.0002,2]
[322009901,1712685058375,-500.0,0.0002,2]
[322009902,1712685058386,-784.79,0.0002,2]
[322009903,1712685058396,-500.0,0.0002,2]
[322009904,1712685058407,-1011.06,0.0002,2]
[322009905,1712685058417,-500.0,0.0002,2]
[322009906,1712685058430,-500.0,0.0002,2]
[322009907,1712685058440,-1027.94,0.0002,2]
[322009908,1712685058450,-2381.21,0.0002,2]
[322009909,1712685058461,-602.09,0.0002,2]
[322009910,1712685058471,-500.0,0.0002,2]
[322009911,1712685058482,-500.0,0.0002,2]
[322009912,1712685058493,-500.0,0.0002,2]
[322009913,1712685058504,-275.19,0.0002,2]
[322009914,1712685058514,-500.0,0.0002,2]
[322009915,1712685058525,-627.1,0.0002,2]
[322009916,1712685058535,-500.0,0.0002,2]
[322009917,1712685058546,-1356.51,0.0002,2]
[322009918,1712685058556,-537.58,0.0002,2]
[322009919,1712685058566,-500.0,0.0002,2]
[322009920,1712685058577,-2357.41,0.0002,2]
[322009921,1712685058588,-500.0,0.0002,2]
[322009922,1712685058598,-1094.02,0.0002,2]
[322009923,1712685058609,-500.0,0.0002,2]
[322009924,1712685058619,-500.0,0.0002,2]
[322009925,1712685058629,-1329.41,0.0002,2]
[322009926,1712685058639,-500.0,0.0002,2]
[322009927,1712685058649,-500.0,0.0002,2]
[322009928,1712685058659,-699.13,0.0002,2]
[322009929,1712685058669,-1056.81,0.0002,2]
[322009930,1712685058680,-508.82,0.0002,2]
[322009931,1712685058692,-884.65,0.0002,2]
[322009932,1712685058702,-759.08,0.0002,2]
[322009933,1712685058712,-500.0,0.0002,2]
[322009934,1712685058722,-588.43,0.0002,2]
[322009935,1712685058732,-1585.64,0.0002,2]
[322009936,1712685058742,-500.0,0.0002,2]
[322009937,1712685058753,-1364.52,0.0002,2]
[322009938,1712685058763,-7521.25,0.0002,2]
[322009939,1712685058773,-500.0,0.0002,2]
[322009940,1712685058783,-16039.16,0.0002,2]
[322009941,1712685058793,-500.0,0.0002,2]
[322009942,1712685058803,-500.0,0.0002,2]
[322009943,1712685058813,-1963.21,0.0002,2]
[322009944,1712685058823,-500.0,0.0002,2]